[Event "*** Titled Tuesday Blitz"]
[Site "Chess.com"]
[Date "2020.11.03"]
[Round "4"]
[White "VMikhalevski"]
[Black "Chessdreamer2020"]
[Result "0-1"]
[WhiteElo "2711"]
[BlackElo "2495"]
[TimeControl "180+1"]
[EndTime "10:45:25 PST"]
[Termination "Chessdreamer2020 won on time"]

1. d4 {[%clk 0:03:00.9]} 1... d6 {[%clk 0:03:00.1]} 2. Nf3 {[%clk 0:03:00.7]}
2... g6 {[%clk 0:02:59.2]} 3. g3 {[%clk 0:02:59.7]} 3... Bg7 {[%clk 0:02:59.7]}
4. Bg2 {[%clk 0:03:00]} 4... e5 {[%clk 0:02:59.7]} 5. dxe5 {[%clk 0:02:59.4]}
5... dxe5 {[%clk 0:02:59.1]} 6. Qxd8+ {[%clk 0:02:59.2]} 6... Kxd8 {[%clk
0:03:00]} 7. Nc3 {[%clk 0:02:51.6]} 7... c6 {[%clk 0:02:59.3]} 8. Ng5 {[%clk
0:02:46.5]} 8... Nh6 {[%clk 0:02:50.1]} 9. f4 {[%clk 0:02:43.9]} 9... f6 {[%clk
0:02:45.6]} 10. Nge4 {[%clk 0:02:43.1]} 10... Nf7 {[%clk 0:02:43.6]} 11. fxe5
{[%clk 0:02:29.5]} 11... Nxe5 {[%clk 0:02:43]} 12. O-O {[%clk 0:02:29.4]} 12...
Rf8 {[%clk 0:02:36.4]} 13. Bf4 {[%clk 0:02:24.5]} 13... Be6 {[%clk 0:02:34.7]}
14. Rad1+ {[%clk 0:02:21.1]} 14... Nbd7 {[%clk 0:02:34.6]} 15. Nxf6 {[%clk
0:02:10]} 15... Bxf6 {[%clk 0:02:27.7]} 16. Bxe5 {[%clk 0:02:08.8]} 16... Be7
{[%clk 0:02:23.2]} 17. Rxf8+ {[%clk 0:02:06.4]} 17... Bxf8 {[%clk 0:02:23.3]}
18. Ne4 {[%clk 0:02:01.1]} 18... Ke8 {[%clk 0:02:14.3]} 19. Bc3 {[%clk
0:01:55.7]} 19... Rb8 {[%clk 0:02:05.5]} 20. a4 {[%clk 0:01:50.9]} 20... Be7
{[%clk 0:02:03.5]} 21. a5 {[%clk 0:01:48.6]} 21... a6 {[%clk 0:02:03.8]} 22.
Nd6+ {[%clk 0:01:46.2]} 22... Kf8 {[%clk 0:02:03.6]} 23. h4 {[%clk 0:01:30.5]}
23... Nc5 {[%clk 0:01:52.5]} 24. Bb4 {[%clk 0:01:20.1]} 24... Nd7 {[%clk
0:01:45.9]} 25. Ba3 {[%clk 0:01:16.3]} 25... Ne5 {[%clk 0:01:43.9]} 26. Rf1+
{[%clk 0:00:54.5]} 26... Kg8 {[%clk 0:01:43.1]} 27. Rf4 {[%clk 0:00:54]} 27...
Nf7 {[%clk 0:01:32.7]} 28. Re4 {[%clk 0:00:49.4]} 28... Nd8 {[%clk 0:01:24.9]}
29. c4 {[%clk 0:00:40.1]} 29... Bf8 {[%clk 0:01:24.7]} 30. Bc5 {[%clk
0:00:37.3]} 30... Bf5 {[%clk 0:01:18.9]} 31. Nxf5 {[%clk 0:00:35.6]} 31... Bxc5+
{[%clk 0:01:18.1]} 32. Ne3 {[%clk 0:00:33.5]} 32... Nf7 {[%clk 0:01:15.6]} 33.
Kh2 {[%clk 0:00:33.2]} 33... Nd6 {[%clk 0:01:15.1]} 34. Re5 {[%clk 0:00:30]}
34... Bxe3 {[%clk 0:01:14.3]} 35. Rxe3 {[%clk 0:00:29.8]} 35... Nxc4 {[%clk
0:01:14.8]} 36. Re4 {[%clk 0:00:28]} 36... Nxa5 {[%clk 0:01:09.9]} 37. Ra4
{[%clk 0:00:26.1]} 37... Nb3 {[%clk 0:01:09.3]} 38. Rb4 {[%clk 0:00:25.1]} 38...
Nc5 {[%clk 0:01:08.7]} 39. Bxc6 {[%clk 0:00:24.7]} 39... Kf7 {[%clk 0:01:06.9]}
40. Kg2 {[%clk 0:00:22.8]} 40... Ke6 {[%clk 0:01:06.6]} 41. Rb6 {[%clk
0:00:18.3]} 41... Ke5 {[%clk 0:01:04]} 42. Bf3 {[%clk 0:00:17.1]} 42... Kd4
{[%clk 0:00:59.3]} 43. h5 {[%clk 0:00:16.5]} 43... gxh5 {[%clk 0:00:58.4]} 44.
Rh6 {[%clk 0:00:16.3]} 44... Na4 {[%clk 0:00:53.9]} 45. b3 {[%clk 0:00:14.8]}
45... Nc5 {[%clk 0:00:53.5]} 46. b4 {[%clk 0:00:15.1]} 46... Na4 {[%clk
0:00:50.9]} 47. Rxh5 {[%clk 0:00:14.5]} 47... b5 {[%clk 0:00:49.7]} 48. Rxh7
{[%clk 0:00:13.3]} 48... Kc3 {[%clk 0:00:49.5]} 49. Rh6 {[%clk 0:00:12.6]} 49...
Kxb4 {[%clk 0:00:46.6]} 50. Rxa6 {[%clk 0:00:12.2]} 50... Nc5 {[%clk 0:00:47.2]}
51. Ra7 {[%clk 0:00:11.7]} 51... Kc3 {[%clk 0:00:46.8]} 52. g4 {[%clk
0:00:11.8]} 52... b4 {[%clk 0:00:46.9]} 53. Rc7 {[%clk 0:00:10.9]} 53... Rb5
{[%clk 0:00:42.4]} 54. Bc6 {[%clk 0:00:09.3]} 54... Ra5 {[%clk 0:00:40.9]} 55.
Bd5 {[%clk 0:00:08.9]} 55... b3 {[%clk 0:00:39.8]} 56. Bxb3 {[%clk 0:00:07.9]}
56... Kxb3 {[%clk 0:00:40]} 57. Kf3 {[%clk 0:00:08.4]} 57... Ne6 {[%clk
0:00:38.6]} 58. Re7 {[%clk 0:00:07.4]} 58... Re5 {[%clk 0:00:35]} 59. Kf2 {[%clk
0:00:05.4]} 59... Kc4 {[%clk 0:00:33.5]} 60. g5 {[%clk 0:00:03]} 60... Kd5
{[%clk 0:00:33.7]} 61. g6 {[%clk 0:00:02.4]} 61... Rf5+ {[%clk 0:00:33.7]} 62.
Ke1 {[%clk 0:00:01.9]} 62... Rg5 {[%clk 0:00:33.7]} 63. Rd7+ {[%clk 0:00:02.4]}
63... Ke5 {[%clk 0:00:33.4]} 64. Ra7 {[%clk 0:00:02.8]} 64... Kf6 {[%clk
0:00:33.1]} 65. Ra5 {[%clk 0:00:03.5]} 65... Rxg6 {[%clk 0:00:33]} 66. Ra6
{[%clk 0:00:03.4]} 66... Rg4 {[%clk 0:00:32.7]} 67. Rb6 {[%clk 0:00:03.8]} 67...
Rc4 {[%clk 0:00:32.4]} 68. Ra6 {[%clk 0:00:04.2]} 68... Rb4 {[%clk 0:00:31.6]}
69. Rc6 {[%clk 0:00:04.3]} 69... Ra4 {[%clk 0:00:31.1]} 70. Rc3 {[%clk
0:00:04.8]} 70... Ke5 {[%clk 0:00:31.1]} 71. Re3+ {[%clk 0:00:04.9]} 71... Kd5
{[%clk 0:00:31.2]} 72. Rd3+ {[%clk 0:00:05]} 72... Ke4 {[%clk 0:00:31.5]} 73.
Rh3 {[%clk 0:00:04.7]} 73... Ra1+ {[%clk 0:00:30.9]} 74. Kf2 {[%clk 0:00:02.9]}
74... Ra2 {[%clk 0:00:31.2]} 75. Rh8 {[%clk 0:00:02.4]} 75... Nf4 {[%clk
0:00:31.2]} 76. Re8+ {[%clk 0:00:02.9]} 76... Kf5 {[%clk 0:00:30.4]} 77. Kf3
{[%clk 0:00:03.5]} 77... Ra3+ {[%clk 0:00:28.8]} 78. e3 {[%clk 0:00:04.1]} 78...
Ne6 {[%clk 0:00:28.2]} 79. Re7 {[%clk 0:00:04.3]} 79... Ng5+ {[%clk 0:00:27.8]}
80. Ke2 {[%clk 0:00:03.7]} 80... Ra2+ {[%clk 0:00:28]} 81. Kd3 {[%clk
0:00:03.9]} 81... Ra3+ {[%clk 0:00:27.4]} 82. Ke2 {[%clk 0:00:04.2]} 82... Ne4
{[%clk 0:00:27.7]} 83. Rf7+ {[%clk 0:00:04.4]} 83... Ke5 {[%clk 0:00:28]} 84.
Re7+ {[%clk 0:00:04.5]} 84... Kd5 {[%clk 0:00:28.1]} 85. Rd7+ {[%clk 0:00:04.8]}
85... Ke6 {[%clk 0:00:28.4]} 86. Rd8 {[%clk 0:00:05.3]} 86... Ra2+ {[%clk
0:00:26.2]} 87. Kf3 {[%clk 0:00:05.3]} 87... Ng5+ {[%clk 0:00:25.3]} 88. Kf4
{[%clk 0:00:04.7]} 88... Nf7 {[%clk 0:00:24.9]} 89. Re8+ {[%clk 0:00:04.4]}
89... Kf6 {[%clk 0:00:24.5]} 90. Rb8 {[%clk 0:00:04.1]} 90... Ra6 {[%clk
0:00:23.5]} 91. e4 {[%clk 0:00:03.6]} 91... Ra1 {[%clk 0:00:21.2]} 92. Rb6+
{[%clk 0:00:03.5]} 92... Ke7 {[%clk 0:00:20.6]} 93. Rb7+ {[%clk 0:00:03.8]}
93... Kf6 {[%clk 0:00:20.3]} 94. Rb6+ {[%clk 0:00:04]} 94... Kg7 {[%clk
0:00:20.4]} 95. Rb7 {[%clk 0:00:04.1]} 95... Rf1+ {[%clk 0:00:20]} 96. Ke3
{[%clk 0:00:03.5]} 96... Kf6 {[%clk 0:00:19.9]} 97. Rb6+ {[%clk 0:00:03.3]}
97... Ke7 {[%clk 0:00:19.9]} 98. Ra6 {[%clk 0:00:02.9]} 98... Nd6 {[%clk
0:00:18.8]} 99. e5 {[%clk 0:00:02.4]} 99... Re1+ {[%clk 0:00:18]} 100. Kd4
{[%clk 0:00:01.8]} 100... Nf5+ {[%clk 0:00:17.6]} 101. Kd5 {[%clk 0:00:02.3]}
101... Rd1+ {[%clk 0:00:17.1]} 102. Ke4 {[%clk 0:00:02.5]} 102... Ng3+ {[%clk
0:00:16.5]} 103. Kf4 {[%clk 0:00:02.9]} 103... Ne2+ {[%clk 0:00:16]} 104. Kf5
{[%clk 0:00:03.2]} 104... Nd4+ {[%clk 0:00:15.5]} 105. Ke4 {[%clk 0:00:03.5]}
105... Ne6 {[%clk 0:00:14.7]} 106. Kf5 {[%clk 0:00:04.1]} 106... Rf1+ {[%clk
0:00:13.8]} 107. Ke4 {[%clk 0:00:04.3]} 107... Rf4+ {[%clk 0:00:14]} 108. Ke3
{[%clk 0:00:04.4]} 108... Rb4 {[%clk 0:00:13.3]} 109. Ra7+ {[%clk 0:00:04.5]}
109... Kf8 {[%clk 0:00:13]} 110. Rh7 {[%clk 0:00:04.5]} 110... Rb3+ {[%clk
0:00:11.3]} 111. Kd2 {[%clk 0:00:03.4]} 111... Rb5 {[%clk 0:00:09.9]} 112. Rh5
{[%clk 0:00:03.3]} 112... Ke7 {[%clk 0:00:09.1]} 113. Ke3 {[%clk 0:00:03]}
113... Kf7 {[%clk 0:00:08.8]} 114. Rf5+ {[%clk 0:00:02.3]} 114... Ke7 {[%clk
0:00:07.8]} 115. Ke4 {[%clk 0:00:02]} 115... Rb3 {[%clk 0:00:07.9]} 116. Kd5
{[%clk 0:00:01.6]} 116... Rb4 {[%clk 0:00:08.4]} 0-1

[Event "*** Titled Tuesday Blitz"]
[Site "Chess.com"]
[Date "2020.11.03"]
[Round "5"]
[White "Nara_Kh"]
[Black "rududuyk"]
[Result "1-0"]
[WhiteElo "2339"]
[BlackElo "2164"]
[TimeControl "180+1"]
[EndTime "10:52:56 PST"]
[Termination "Nara_Kh won by resignation"]

1. e4 {[%clk 0:03:00.9]} 1... e6 {[%clk 0:03:00]} 2. d4 {[%clk 0:02:59.2]} 2...
d5 {[%clk 0:03:00.4]} 3. Nd2 {[%clk 0:02:58.7]} 3... Nf6 {[%clk 0:02:59.5]} 4.
e5 {[%clk 0:02:58.6]} 4... Nfd7 {[%clk 0:02:59.9]} 5. Bd3 {[%clk 0:02:52.9]}
5... c5 {[%clk 0:03:00.1]} 6. c3 {[%clk 0:02:53.3]} 6... Nc6 {[%clk 0:03:00]} 7.
Ngf3 {[%clk 0:02:53.6]} 7... Qb6 {[%clk 0:02:45.3]} 8. O-O {[%clk 0:02:52.6]}
8... cxd4 {[%clk 0:02:43.8]} 9. cxd4 {[%clk 0:02:53.5]} 9... Nxd4 {[%clk
0:02:43.8]} 10. Nxd4 {[%clk 0:02:53.7]} 10... Qxd4 {[%clk 0:02:44.1]} 11. Nf3
{[%clk 0:02:54.4]} 11... Be7 {[%clk 0:02:17.3]} 12. Nxd4 {[%clk 0:02:53.6]} 1-0

[Event "*** Titled Tuesday Blitz"]
[Site "Chess.com"]
[Date "2020.11.03"]
[Round "5"]
[White "keepitcoming"]
[Black "Man-Chuk"]
[Result "0-1"]
[WhiteElo "2535"]
[BlackElo "2841"]
[TimeControl "180+1"]
[EndTime "10:55:43 PST"]
[Termination "Man-Chuk won by resignation"]

1. d4 {[%clk 0:03:00.9]} 1... Nf6 {[%clk 0:02:59.5]} 2. c4 {[%clk 0:03:00.6]}
2... e6 {[%clk 0:02:54.7]} 3. Nc3 {[%clk 0:02:59.4]} 3... Bb4 {[%clk 0:02:53.9]}
4. e3 {[%clk 0:02:58.7]} 4... b6 {[%clk 0:02:49.9]} 5. Ne2 {[%clk 0:02:57.4]}
5... Ba6 {[%clk 0:02:47.2]} 6. a3 {[%clk 0:02:57.3]} 6... Bxc3+ {[%clk
0:02:47.2]} 7. Nxc3 {[%clk 0:02:57.1]} 7... d5 {[%clk 0:02:48.1]} 8. cxd5 {[%clk
0:02:25.3]} 8... Bxf1 {[%clk 0:02:47.3]} 9. Kxf1 {[%clk 0:02:26.2]} 9... exd5
{[%clk 0:02:39.6]} 10. g3 {[%clk 0:02:17.3]} 10... c5 {[%clk 0:02:24.9]} 11. h4
{[%clk 0:02:09.1]} 11... Nc6 {[%clk 0:02:21.8]} 12. h5 {[%clk 0:02:01]} 12... h6
{[%clk 0:02:19.7]} 13. Kg2 {[%clk 0:02:00.5]} 13... O-O {[%clk 0:02:18.8]} 14.
b3 {[%clk 0:01:36.1]} 14... Re8 {[%clk 0:02:16.5]} 15. dxc5 {[%clk 0:01:35.2]}
15... bxc5 {[%clk 0:02:16.1]} 16. Na4 {[%clk 0:01:35.8]} 16... d4 {[%clk
0:02:13.1]} 17. Nxc5 {[%clk 0:01:30]} 17... Qd5+ {[%clk 0:02:11.4]} 18. Qf3
{[%clk 0:00:59.4]} 18... Qxc5 {[%clk 0:02:10]} 19. b4 {[%clk 0:00:56.6]} 19...
Qd5 {[%clk 0:02:01.3]} 20. b5 {[%clk 0:00:48.1]} 20... Qxb5 {[%clk 0:01:56.7]}
0-1

[Event "*** Titled Tuesday Blitz"]
[Site "Chess.com"]
[Date "2020.11.03"]
[Round "5"]
[White "davigator"]
[Black "GoltsevDmitry2000"]
[Result "0-1"]
[WhiteElo "2364"]
[BlackElo "2662"]
[TimeControl "180+1"]
[EndTime "10:55:55 PST"]
[Termination "GoltsevDmitry2000 won by resignation"]

1. e4 {[%clk 0:03:00.9]} 1... c5 {[%clk 0:02:35.4]} 2. Nf3 {[%clk 0:02:59.7]}
2... e6 {[%clk 0:02:36]} 3. d4 {[%clk 0:02:59.6]} 3... cxd4 {[%clk 0:02:36.9]}
4. Nxd4 {[%clk 0:03:00.1]} 4... a6 {[%clk 0:02:37.8]} 5. Bd3 {[%clk 0:02:58.5]}
5... Qc7 {[%clk 0:02:37.6]} 6. Qe2 {[%clk 0:02:58.1]} 6... Nc6 {[%clk
0:02:36.7]} 7. Nxc6 {[%clk 0:02:53.4]} 7... bxc6 {[%clk 0:02:36.4]} 8. c4 {[%clk
0:02:51.5]} 8... Bb7 {[%clk 0:02:36]} 9. Nc3 {[%clk 0:02:50.6]} 9... Bd6 {[%clk
0:02:26.3]} 10. g3 {[%clk 0:02:47.4]} 10... Ne7 {[%clk 0:02:26.2]} 11. f4 {[%clk
0:02:47.3]} 11... e5 {[%clk 0:02:26.3]} 12. f5 {[%clk 0:02:47]} 12... Bc5 {[%clk
0:02:25.5]} 13. Be3 {[%clk 0:02:45]} 13... Qb6 {[%clk 0:02:23.1]} 14. Bxc5
{[%clk 0:02:45]} 14... Qxc5 {[%clk 0:02:24]} 15. Qf2 {[%clk 0:02:43.1]} 15...
Qxf2+ {[%clk 0:02:22.3]} 16. Kxf2 {[%clk 0:02:43.3]} 16... d6 {[%clk 0:02:20.8]}
17. c5 {[%clk 0:02:40]} 17... d5 {[%clk 0:02:18.1]} 18. Rhe1 {[%clk 0:02:37.4]}
18... f6 {[%clk 0:02:17.1]} 19. Na4 {[%clk 0:02:29.1]} 19... Nc8 {[%clk
0:02:13]} 20. b4 {[%clk 0:02:21.2]} 20... Kd7 {[%clk 0:02:13]} 21. Rad1 {[%clk
0:02:17]} 21... Kc7 {[%clk 0:02:13]} 22. g4 {[%clk 0:02:15.2]} 22... h6 {[%clk
0:02:12.2]} 23. Kg3 {[%clk 0:02:13.2]} 23... Rd8 {[%clk 0:02:01.9]} 24. h4
{[%clk 0:02:10.6]} 24... a5 {[%clk 0:02:01.9]} 25. b5 {[%clk 0:02:09.9]} 25...
cxb5 {[%clk 0:01:57.6]} 26. Bxb5 {[%clk 0:02:09.8]} 26... dxe4 {[%clk
0:01:55.4]} 27. Rxd8 {[%clk 0:02:08.6]} 27... Kxd8 {[%clk 0:01:56.3]} 28. c6
{[%clk 0:02:08.2]} 28... Ba6 {[%clk 0:01:56.4]} 29. Nc3 {[%clk 0:02:06.7]} 29...
Kc7 {[%clk 0:01:55.2]} 30. Rxe4 {[%clk 0:02:04.2]} 30... Bxb5 {[%clk 0:01:55.2]}
31. Nxb5+ {[%clk 0:02:04.3]} 31... Kxc6 {[%clk 0:01:56.1]} 32. a4 {[%clk
0:02:04.8]} 32... Nb6 {[%clk 0:01:55.6]} 33. g5 {[%clk 0:02:04]} 33... hxg5
{[%clk 0:01:55.3]} 34. hxg5 {[%clk 0:02:03.4]} 34... Rh8 {[%clk 0:01:52.9]} 35.
Nc3 {[%clk 0:02:01.4]} 35... Rh5 {[%clk 0:01:51.4]} 36. gxf6 {[%clk 0:02:00]}
36... gxf6 {[%clk 0:01:52.3]} 37. Rg4 {[%clk 0:01:48.7]} 37... Rxf5 {[%clk
0:01:51.2]} 38. Rg6 {[%clk 0:01:48.3]} 38... Nd5 {[%clk 0:01:45.1]} 39. Rg8
{[%clk 0:01:43.2]} 39... Nxc3 {[%clk 0:01:44]} 0-1

[Event "*** Titled Tuesday Blitz"]
[Site "Chess.com"]
[Date "2020.11.03"]
[Round "5"]
[White "CM_rui"]
[Black "VMikhalevski"]
[Result "1-0"]
[WhiteElo "2388"]
[BlackElo "2697"]
[TimeControl "180+1"]
[EndTime "10:55:58 PST"]
[Termination "CM_rui won by resignation"]

1. e4 {[%clk 0:03:00.9]} 1... e5 {[%clk 0:02:59.5]} 2. Nf3 {[%clk 0:02:59.2]}
2... Nc6 {[%clk 0:03:00]} 3. Bb5 {[%clk 0:02:59.1]} 3... g6 {[%clk 0:02:59]} 4.
O-O {[%clk 0:02:58.4]} 4... Bg7 {[%clk 0:02:59.1]} 5. c3 {[%clk 0:02:58.9]} 5...
a6 {[%clk 0:02:56.1]} 6. Ba4 {[%clk 0:02:58.4]} 6... b5 {[%clk 0:02:53.7]} 7.
Bc2 {[%clk 0:02:58.2]} 7... Nf6 {[%clk 0:02:52.4]} 8. d4 {[%clk 0:02:56.7]} 8...
exd4 {[%clk 0:02:51.9]} 9. e5 {[%clk 0:02:51.3]} 9... Nd5 {[%clk 0:02:48.2]} 10.
cxd4 {[%clk 0:02:50.5]} 10... d6 {[%clk 0:02:43.7]} 11. Be4 {[%clk 0:02:41.7]}
11... Nce7 {[%clk 0:02:36]} 12. Bg5 {[%clk 0:02:35.7]} 12... Bb7 {[%clk
0:02:33.1]} 13. Qb3 {[%clk 0:02:29.9]} 13... Rb8 {[%clk 0:02:24.6]} 14. Bxd5
{[%clk 0:02:17]} 14... Bxd5 {[%clk 0:02:22.8]} 15. Bxe7 {[%clk 0:02:17.2]} 15...
Bxb3 {[%clk 0:02:20.8]} 16. Bxd8 {[%clk 0:02:17.5]} 16... Bc4 {[%clk 0:02:12]}
17. Bxc7 {[%clk 0:02:12.3]} 17... Rc8 {[%clk 0:02:11.6]} 18. exd6 {[%clk
0:01:47.8]} 18... Bxf1 {[%clk 0:02:08.5]} 19. Kxf1 {[%clk 0:01:48.7]} 19... Kd7
{[%clk 0:02:04.6]} 20. Nc3 {[%clk 0:01:47]} 20... Rhe8 {[%clk 0:02:03.4]} 21.
Rc1 {[%clk 0:01:43.1]} 21... Re6 {[%clk 0:01:56.5]} 22. Ng5 {[%clk 0:01:31.1]}
22... Rf6 {[%clk 0:01:36.5]} 23. Nge4 {[%clk 0:01:27.3]} 23... Rf4 {[%clk
0:01:25.9]} 24. Nc5+ {[%clk 0:01:27]} 24... Kc6 {[%clk 0:01:25.5]} 25. d7 {[%clk
0:01:23.5]} 25... Kxc7 {[%clk 0:01:25.2]} 26. Nd5+ {[%clk 0:01:21.1]} 26... Kd8
{[%clk 0:01:24.2]} 27. dxc8=Q+ {[%clk 0:01:18.6]} 1-0

[Event "*** Titled Tuesday Blitz"]
[Site "Chess.com"]
[Date "2020.11.03"]
[Round "5"]
[White "Susal_De_Silva"]
[Black "SergeyShtyka"]
[Result "1-0"]
[WhiteElo "2523"]
[BlackElo "2362"]
[TimeControl "180+1"]
[EndTime "10:55:59 PST"]
[Termination "Susal_De_Silva won by resignation"]

1. e4 {[%clk 0:02:58.7]} 1... c5 {[%clk 0:02:57.7]} 2. Nf3 {[%clk 0:02:57.1]}
2... Nc6 {[%clk 0:02:57.1]} 3. Bb5 {[%clk 0:02:56.9]} 3... Nd4 {[%clk
0:02:55.8]} 4. Nxd4 {[%clk 0:02:56.7]} 4... cxd4 {[%clk 0:02:56.3]} 5. O-O
{[%clk 0:02:57.3]} 5... e6 {[%clk 0:02:52.6]} 6. c3 {[%clk 0:02:56.8]} 6... Bc5
{[%clk 0:02:52.6]} 7. a4 {[%clk 0:02:52.2]} 7... Ne7 {[%clk 0:02:51.9]} 8. b4
{[%clk 0:02:48.8]} 8... Bd6 {[%clk 0:02:36.4]} 9. Ba3 {[%clk 0:02:45.6]} 9...
dxc3 {[%clk 0:02:28.7]} 10. dxc3 {[%clk 0:02:44.4]} 10... Qc7 {[%clk 0:02:22.2]}
11. g3 {[%clk 0:02:39.2]} 11... h5 {[%clk 0:02:09]} 12. Nd2 {[%clk 0:02:30.8]}
12... h4 {[%clk 0:02:06.8]} 13. Nc4 {[%clk 0:02:30.6]} 13... Bxg3 {[%clk
0:01:56.9]} 14. fxg3 {[%clk 0:02:19.1]} 14... hxg3 {[%clk 0:01:53.4]} 15. Nd6+
{[%clk 0:02:18.1]} 15... Kf8 {[%clk 0:01:49.8]} 16. Rxf7+ {[%clk 0:01:46.6]}
16... Kg8 {[%clk 0:01:49.2]} 17. hxg3 {[%clk 0:01:45.1]} 17... Qxc3 {[%clk
0:01:39.3]} 18. Rf3 {[%clk 0:01:26.8]} 18... Qe5 {[%clk 0:01:28.7]} 19. Nf7
{[%clk 0:01:20.5]} 1-0

[Event "*** Titled Tuesday Blitz"]
[Site "Chess.com"]
[Date "2020.11.03"]
[Round "5"]
[White "saraswathii"]
[Black "doons21"]
[Result "0-1"]
[WhiteElo "2382"]
[BlackElo "2595"]
[TimeControl "180+1"]
[EndTime "10:56:10 PST"]
[Termination "doons21 won by resignation"]

1. e4 {[%clk 0:03:00.9]} 1... e6 {[%clk 0:02:55.1]} 2. d3 {[%clk 0:02:55]} 2...
d5 {[%clk 0:02:55.3]} 3. Nd2 {[%clk 0:02:53.5]} 3... Nf6 {[%clk 0:02:55.5]} 4.
Ngf3 {[%clk 0:02:48.9]} 4... Be7 {[%clk 0:02:54.5]} 5. g3 {[%clk 0:02:43.9]}
5... c5 {[%clk 0:02:55]} 6. Bg2 {[%clk 0:02:39.3]} 6... Nc6 {[%clk 0:02:55.5]}
7. O-O {[%clk 0:02:38.3]} 7... Qc7 {[%clk 0:02:54.8]} 8. Qe2 {[%clk 0:02:36.7]}
8... b6 {[%clk 0:02:52.4]} 9. e5 {[%clk 0:02:35.7]} 9... Nd7 {[%clk 0:02:52]}
10. Re1 {[%clk 0:02:34.7]} 10... g5 {[%clk 0:02:51.9]} 11. h3 {[%clk 0:02:33.5]}
11... h5 {[%clk 0:02:51.8]} 12. g4 {[%clk 0:02:31.9]} 12... hxg4 {[%clk
0:02:51.9]} 13. hxg4 {[%clk 0:02:32.8]} 13... Bb7 {[%clk 0:02:44.9]} 14. c3
{[%clk 0:02:32.3]} 14... O-O-O {[%clk 0:02:31.9]} 15. Nb3 {[%clk 0:02:23.7]}
15... Rdg8 {[%clk 0:02:28.6]} 16. d4 {[%clk 0:02:22.7]} 16... c4 {[%clk
0:02:06.9]} 17. Nbd2 {[%clk 0:02:20.1]} 17... Nf8 {[%clk 0:02:07.2]} 18. b3
{[%clk 0:02:18.7]} 18... Ng6 {[%clk 0:01:58.6]} 19. bxc4 {[%clk 0:02:16.4]}
19... Nf4 {[%clk 0:01:58.2]} 20. Qf1 {[%clk 0:02:15.8]} 20... Nxg2 {[%clk
0:01:33.3]} 21. Kxg2 {[%clk 0:02:08.5]} 21... Na5 {[%clk 0:01:29.3]} 22. cxd5
{[%clk 0:02:05.1]} 22... Bxd5 {[%clk 0:01:29.2]} 23. Ne4 {[%clk 0:02:02.6]}
23... Qc6 {[%clk 0:01:19.3]} 24. Qd3 {[%clk 0:01:55.6]} 24... Rh6 {[%clk
0:01:07.2]} 25. Rh1 {[%clk 0:01:32.1]} 25... Rxh1 {[%clk 0:01:05.7]} 26. Kxh1
{[%clk 0:01:31.5]} 26... Rh8+ {[%clk 0:01:06.6]} 27. Kg2 {[%clk 0:01:30.9]}
27... Bxe4 {[%clk 0:01:06.9]} 0-1

[Event "*** Titled Tuesday Blitz"]
[Site "Chess.com"]
[Date "2020.11.03"]
[Round "5"]
[White "MarkoPe"]
[Black "Eliwood44"]
[Result "0-1"]
[WhiteElo "2229"]
[BlackElo "2447"]
[TimeControl "180+1"]
[EndTime "10:56:15 PST"]
[Termination "Eliwood44 won by resignation"]

1. e4 {[%clk 0:03:00.9]} 1... e5 {[%clk 0:03:00]} 2. Nf3 {[%clk 0:03:00.3]} 2...
Nc6 {[%clk 0:02:59.8]} 3. Bb5 {[%clk 0:02:59.7]} 3... a6 {[%clk 0:02:59.4]} 4.
Ba4 {[%clk 0:02:59.6]} 4... d6 {[%clk 0:02:59.8]} 5. O-O {[%clk 0:02:56.9]} 5...
Bd7 {[%clk 0:02:59.9]} 6. c3 {[%clk 0:02:53.3]} 6... g6 {[%clk 0:02:59.3]} 7. d4
{[%clk 0:02:50.1]} 7... Bg7 {[%clk 0:02:54.4]} 8. Be3 {[%clk 0:02:28.6]} 8...
Nf6 {[%clk 0:02:53.8]} 9. dxe5 {[%clk 0:02:25.4]} 9... Nxe5 {[%clk 0:02:53]} 10.
Nxe5 {[%clk 0:02:22.6]} 10... dxe5 {[%clk 0:02:49.4]} 11. Nd2 {[%clk 0:02:17.7]}
11... O-O {[%clk 0:02:46.5]} 12. f3 {[%clk 0:02:13.8]} 12... Qe7 {[%clk
0:02:43.9]} 13. Bxd7 {[%clk 0:02:07.9]} 13... Nxd7 {[%clk 0:02:43.5]} 14. Qc2
{[%clk 0:02:06.5]} 14... Rfd8 {[%clk 0:02:39.8]} 15. Rfd1 {[%clk 0:02:05.6]}
15... c5 {[%clk 0:02:32.4]} 16. a4 {[%clk 0:02:02.5]} 16... b5 {[%clk
0:02:31.6]} 17. Qb3 {[%clk 0:01:29.4]} 17... c4 {[%clk 0:02:28.7]} 18. Qa3
{[%clk 0:01:15.8]} 18... Qe8 {[%clk 0:02:24.5]} 19. Qd6 {[%clk 0:01:10.2]} 19...
Bf8 {[%clk 0:02:21.9]} 20. Qc6 {[%clk 0:00:59.1]} 20... Rdc8 {[%clk 0:02:17.7]}
21. Qd5 {[%clk 0:00:49.5]} 21... Nf6 {[%clk 0:01:57]} 0-1

[Event "*** Titled Tuesday Blitz"]
[Site "Chess.com"]
[Date "2020.11.03"]
[Round "5"]
[White "dropstoneDP"]
[Black "MomchilPetkov"]
[Result "1-0"]
[WhiteElo "2900"]
[BlackElo "2650"]
[TimeControl "180+1"]
[EndTime "10:56:16 PST"]
[Termination "dropstoneDP won by resignation"]

1. d4 {[%clk 0:02:58.7]} 1... g6 {[%clk 0:02:59.7]} 2. e4 {[%clk 0:02:58.8]}
2... Bg7 {[%clk 0:02:58.4]} 3. Nf3 {[%clk 0:02:59.4]} 3... c6 {[%clk 0:02:57.6]}
4. Bf4 {[%clk 0:02:56.4]} 4... d5 {[%clk 0:02:54]} 5. exd5 {[%clk 0:02:57.3]}
5... cxd5 {[%clk 0:02:54.2]} 6. c3 {[%clk 0:02:57.7]} 6... Nc6 {[%clk
0:02:54.3]} 7. Be2 {[%clk 0:02:55.9]} 7... Bg4 {[%clk 0:02:47.8]} 8. Nbd2 {[%clk
0:02:55.1]} 8... Nf6 {[%clk 0:02:47.3]} 9. O-O {[%clk 0:02:54.7]} 9... O-O
{[%clk 0:02:47.3]} 10. Re1 {[%clk 0:02:54.4]} 10... a6 {[%clk 0:02:31.9]} 11. h3
{[%clk 0:02:48.4]} 11... Bxf3 {[%clk 0:02:30.4]} 12. Bxf3 {[%clk 0:02:44.9]}
12... Rc8 {[%clk 0:02:24.2]} 13. Nb3 {[%clk 0:02:40.8]} 13... e6 {[%clk
0:01:55.7]} 14. Nc5 {[%clk 0:02:40.5]} 14... Qb6 {[%clk 0:01:33.4]} 15. Qb3
{[%clk 0:02:39.7]} 15... Qxb3 {[%clk 0:01:15.8]} 16. axb3 {[%clk 0:02:40.6]}
16... Nd8 {[%clk 0:01:15.9]} 17. g4 {[%clk 0:02:39.8]} 17... Re8 {[%clk
0:01:10.1]} 18. Kg2 {[%clk 0:02:36.3]} 18... Bf8 {[%clk 0:01:10.1]} 19. b4
{[%clk 0:02:32.9]} 19... Bxc5 {[%clk 0:01:10.3]} 20. bxc5 {[%clk 0:02:32.1]}
20... Nc6 {[%clk 0:01:10.7]} 21. Ra3 {[%clk 0:02:28]} 21... Nd7 {[%clk
0:01:05.2]} 22. Bd6 {[%clk 0:02:28.1]} 22... Na7 {[%clk 0:00:56.6]} 23. Be2
{[%clk 0:02:26.1]} 23... e5 {[%clk 0:00:46.2]} 24. Bf1 {[%clk 0:02:25.9]} 24...
exd4 {[%clk 0:00:40.9]} 25. Rxe8+ {[%clk 0:02:26.8]} 25... Rxe8 {[%clk
0:00:41.1]} 26. cxd4 {[%clk 0:02:27.7]} 26... Re4 {[%clk 0:00:35.5]} 27. Rb3
{[%clk 0:02:27.8]} 27... Nb5 {[%clk 0:00:15]} 28. Bxb5 {[%clk 0:02:27.5]} 28...
axb5 {[%clk 0:00:15.9]} 29. Rxb5 {[%clk 0:02:28.4]} 29... Rxd4 {[%clk
0:00:16.8]} 30. Rxb7 {[%clk 0:02:28.5]} 30... Nxc5 {[%clk 0:00:08.7]} 31. Rb8+
{[%clk 0:02:28.5]} 1-0